Workbook

Sheet Dashboard
C3: 401K Balance | D3: 500000.01 | G3: Message Center
H4: Task Complete!
H5: Logging out of DMBA
H6: All Done
H7: Pulling 401K balance for: 4/12/2015 (0 Days to go)
H8: Pulling 401K balance for: 4/11/2015 (1 Days to go)
H9: Pulling 401K balance for: 4/10/2015 (2 Days to go)
C10: Change In Value (2 weeks)
C11: 2015-04-12 | D11: 0
C12: 2015-04-11 | D12: 0
C13: 2015-04-10 | D13: 122.1
C14: 2015-04-09 | D14: 85.35
C15: 2015-04-08 | D15: 109.96
C16: 2015-04-07 | D16: 640.56
C17: 2015-04-06 | D17: 171.14
C18: 2015-04-05 | D18: 0
C19: 2015-04-04 | D19: 0
C20: 2015-04-03 | D20: 0
C21: 2015-04-02 | D21: 69.9
C22: 2015-04-01 | D22: -60.64
C23: 2015-03-31 | D23: -161.57
C24: 2015-03-30 | D24: 239.93
C25: 2015-03-29 | D25: 0

Sheet DailyBalance
A1: Date | C1: Balance | E1: VMRXX | F1: VFSIX | G1: PTTRX | H1: VIPIX | I1: PHIYX | J1: MLPOX | K1: VIIIX | L1: GGOIX | M1: SVUIX | N1: DFSVX | O1: TCMSX | P1: BIIEX | Q1: WBIIX
A2: 2015-03-24 | C2: =SUM(E2:Q2) -> 479522.99 | E2: 123456.78 | F2: 100 | G2: 200 | H2: 76543.21 | I2: 800 | J2: 9000 | K2: 234000 | L2: 25000 | M2: 10000 | N2: 400 | O2: 1 | P2: 10 | Q2: 12
A3: 2015-03-25 | C3: 479651.99 | E3: =E2+(RANDBETWEEN(-25,45)) -> 123465.78 | F3: =F2+(RANDBETWEEN(-2,5)) -> 105 | G3: =G2+(RANDBETWEEN(-5,5)) -> 202 | H3: =H2+(RANDBETWEEN(-2.5,4.5)) -> 76546.21 | I3: =I2+(RANDBETWEEN(-1,3)) -> 802 | J3: =J2+(RANDBETWEEN(-12,15)) -> 8989 | K3: =K2+(RANDBETWEEN(-125,245)) -> 234100 | L3: =L2+(RANDBETWEEN(-25,45)) -> 24995 | M3: =M2+(RANDBETWEEN(-2,45)) -> 10013 | N3: =N2+(RANDBETWEEN(-2,14)) -> 413 | O3: =O2+(RANDBETWEEN(-2,5)) -> 3 | P3: =P2+(RANDBETWEEN(-5,5)) -> 6 | Q3: =Q2+(RANDBETWEEN(-2,3)) -> 12
A4: 2015-03-26 | C4: 479787.99 | E4: =E3+(RANDBETWEEN(-25,45)) -> 123505.78 | F4: =F3+(RANDBETWEEN(-2,5)) -> 109 | G4: =G3+(RANDBETWEEN(-5,5)) -> 207 | H4: =H3+(RANDBETWEEN(-2.5,4.5)) -> 76550.21 | I4: =I3+(RANDBETWEEN(-1,3)) -> 801 | J4: =J3+(RANDBETWEEN(-12,15)) -> 8981 | K4: =K3+(RANDBETWEEN(-125,245)) -> 234188 | L4: =L3+(RANDBETWEEN(-25,45)) -> 25000 | M4: =M3+(RANDBETWEEN(-2,45)) -> 10015 | N4: =N3+(RANDBETWEEN(-2,14)) -> 414 | O4: =O3+(RANDBETWEEN(-2,5)) -> 1 | P4: =P3+(RANDBETWEEN(-5,5)) -> 2 | Q4: =Q3+(RANDBETWEEN(-2,3)) -> 14
A5: 2015-03-27 | C5: 480042.99 | E5: 123544.78 | F5: 112 | G5: 209 | H5: 76548.21 | I5: 803 | J5: 8992 | K5: 234360 | L5: 24989 | M5: 10041 | N5: 427 | O5: 5 | P5: -1 | Q5: 13
A6: 2015-03-28 | C6: 480614.99 | E6: 123562.78 | F6: 115 | G6: 207 | H6: 76549.21 | I6: 806 | J6: 8993 | K6: 234329 | L6: 24974 | M6: 10080 | N6: 441 | O6: 500 | P6: =P5+(RANDBETWEEN(-5,55)) -> 42 | Q6: 16
A7: 2015-03-29 | C7: 480631.99 | E7: 123596.78 | F7: 120 | G7: 207 | H7: 76552.21 | I7: 809 | J7: 9003 | K7: 234221 | L7: 24993 | M7: 10116 | N7: 449 | O7: 503 | P7: 46 | Q7: 16
A8: 2015-03-30 | C8: 480605.99 | E8: 123610.78 | F8: 121 | G8: 205 | H8: 76552.21 | I8: 810 | J8: 9018 | K8: 234131 | L8: 24986 | M8: 10149 | N8: 455 | O8: 506 | P8: 46 | Q8: 16
A9: 2015-03-31 | C9: 480881.99 | E9: 123654.78 | F9: 125 | G9: 208 | H9: 76556.21 | I9: 811 | J9: 9030 | K9: 234280 | L9: 25011 | M9: 10169 | N9: 468 | O9: 504 | P9: 48 | Q9: 17
A10: 2015-04-01 | C10: 481043.99 | E10: 123671.78 | F10: 129 | G10: 203 | H10: 76556.21 | I10: 810 | J10: 9038 | K10: 234359 | L10: 25053 | M10: 10184 | N10: 468 | O10: 502 | P10: 50 | Q10: 20
A11: 2015-04-02 | C11: 481191.99 | E11: 123681.78 | F11: 133 | G11: 199 | H11: 76556.21 | I11: 810 | J11: 9034 | K11: 234471 | L11: 25036 | M11: 10222 | N11: 477 | O11: 505 | P11: 47 | Q11: 20
A12: 2015-04-03 | C12: 481296.99 | E12: 123688.78 | F12: 132 | G12: 198 | H12: 76555.21 | I12: 809 | J12: 9030 | K12: 234537 | L12: 25037 | M12: 10253 | N12: 486 | O12: 508 | P12: 44 | Q12: 19
A13: 2015-04-04 | C13: 481505.99 | E13: 123721.78 | F13: 131 | G13: 196 | H13: 76553.21 | I13: 809 | J13: 9022 | K13: 234671 | L13: 25057 | M13: 10269 | N13: 500 | O13: 512 | P13: 45 | Q13: 19
A14: 2015-04-05 | C14: 481514.99 | E14: 123715.78 | F14: =F13+(RANDBETWEEN(-2,85)) -> 189 | G14: 192 | H14: 76551.21 | I14: 808 | J14: 9029 | K14: 234600 | L14: 25067 | M14: 10273 | N14: 509 | O14: 513 | P14: 46 | Q14: 22
A15: 2015-04-06 | C15: 481572.99 | E15: 123727.78 | F15: 188 | G15: 190 | H15: 76553.21 | I15: 809 | J15: 9018 | K15: 234594 | L15: 25102 | M15: 10292 | N15: 510 | O15: 516 | P15: 49 | Q15: 24
A16: 2015-04-07 | C16: 482167.99 | E16: 123712.78 | F16: 192 | G16: 189 | H16: 76552.21 | I16: 1500 | J16: 9026 | K16: 234469 | L16: 25091 | M16: 10320 | N16: 518 | O16: 520 | P16: 54 | Q16: 24
A17: 2015-04-08 | C17: 482180.99 | E17: 123745.78 | F17: 195 | G17: 188 | H17: 76551.21 | I17: 1501 | J17: 9040 | K17: 234368 | L17: 25117 | M17: 10340 | N17: 531 | O17: 525 | P17: 54 | Q17: 25
A18: 2015-04-09 | C18: 482195.99 | E18: 123728.78 | F18: 199 | G18: 186 | H18: 76554.21 | I18: 1501 | J18: 9035 | K18: 234371 | L18: 25120 | M18: 10343 | N18: 544 | O18: 528 | P18: 59 | Q18: 27
A19: 2015-04-10 | C19: 482298.99 | E19: 123716.78 | F19: 197 | G19: 190 | H19: 76558.21 | I19: 1503 | J19: 9044 | K19: 234424 | L19: 25152 | M19: 10352 | N19: 543 | O19: 528 | P19: 62 | Q19: 29
A20: 2015-04-11 | C20: 482180.99 | E20: 123697.78 | F20: 199 | G20: 194 | H20: 76556.21 | I20: 1506 | J20: 9036 | K20: 234341 | L20: 25127 | M20: 10353 | N20: 552 | O20: 533 | P20: 57 | Q20: 29
A21: 2015-04-12 | C21: 482141.99 | E21: 123713.78 | F21: 202 | G21: 199 | H21: 76560.21 | I21: 1509 | J21: 9024 | K21: 234217 | L21: 25147 | M21: 10386 | N21: 559 | O21: 536 | P21: 57 | Q21: 32

Sheet DailyChange
A1: Date | B1: Balance | D1: VMRXX | E1: VFSIX | F1: PTTRX | G1: VIPIX | H1: PHIYX | I1: MLPOX | J1: VIIIX | K1: GGOIX | L1: SVUIX | M1: DFSVX | N1: TCMSX | O1: BIIEX | P1: WBIIX
A2: =IF(DailyBalance!A2>0,DailyBalance!A2,"") -> 2015-03-24 | B2: 0 | D2: 0 | E2: 0 | F2: 0 | G2: 0 | H2: 0 | I2: 0 | J2: 0 | K2: 0 | L2: 0 | M2: 0 | N2: 0 | O2: 0 | P2: 0
A3: =IF(DailyBalance!A3>0,DailyBalance!A3,"") -> 2015-03-25 | B3: =DailyBalance!C3-DailyBalance!C2 -> 129 | D3: =DailyBalance!E3-DailyBalance!E2 -> 9 | E3: =DailyBalance!F3-DailyBalance!F2 -> 5 | F3: =DailyBalance!G3-DailyBalance!G2 -> 2 | G3: =DailyBalance!H3-DailyBalance!H2 -> 3 | H3: =DailyBalance!I3-DailyBalance!I2 -> 2 | I3: =DailyBalance!J3-DailyBalance!J2 -> -11 | J3: =DailyBalance!K3-DailyBalance!K2 -> 100 | K3: =DailyBalance!L3-DailyBalance!L2 -> -5 | L3: =DailyBalance!M3-DailyBalance!M2 -> 13 | M3: =DailyBalance!N3-DailyBalance!N2 -> 13 | N3: =DailyBalance!O3-DailyBalance!O2 -> 2 | O3: =DailyBalance!P3-DailyBalance!P2 -> -4 | P3: =DailyBalance!Q3-DailyBalance!Q2 -> 0
A4: =IF(DailyBalance!A4>0,DailyBalance!A4,"") -> 2015-03-26 | B4: =DailyBalance!C4-DailyBalance!C3 -> 136 | D4: =DailyBalance!E4-DailyBalance!E3 -> 40 | E4: =DailyBalance!F4-DailyBalance!F3 -> 4 | F4: =DailyBalance!G4-DailyBalance!G3 -> 5 | G4: =DailyBalance!H4-DailyBalance!H3 -> 4 | H4: =DailyBalance!I4-DailyBalance!I3 -> -1 | I4: =DailyBalance!J4-DailyBalance!J3 -> -8 | J4: =DailyBalance!K4-DailyBalance!K3 -> 88 | K4: =DailyBalance!L4-DailyBalance!L3 -> 5 | L4: =DailyBalance!M4-DailyBalance!M3 -> 2 | M4: =DailyBalance!N4-DailyBalance!N3 -> 1 | N4: =DailyBalance!O4-DailyBalance!O3 -> -2 | O4: =DailyBalance!P4-DailyBalance!P3 -> -4 | P4: =DailyBalance!Q4-DailyBalance!Q3 -> 2
A5: =IF(DailyBalance!A5>0,DailyBalance!A5,"") -> 2015-03-27 | B5: =DailyBalance!C5-DailyBalance!C4 -> 255 | D5: =DailyBalance!E5-DailyBalance!E4 -> 39 | E5: =DailyBalance!F5-DailyBalance!F4 -> 3 | F5: =DailyBalance!G5-DailyBalance!G4 -> 2 | G5: =DailyBalance!H5-DailyBalance!H4 -> -2 | H5: =DailyBalance!I5-DailyBalance!I4 -> 2 | I5: =DailyBalance!J5-DailyBalance!J4 -> 11 | J5: =DailyBalance!K5-DailyBalance!K4 -> 172 | K5: =DailyBalance!L5-DailyBalance!L4 -> -11 | L5: =DailyBalance!M5-DailyBalance!M4 -> 26 | M5: =DailyBalance!N5-DailyBalance!N4 -> 13 | N5: =DailyBalance!O5-DailyBalance!O4 -> 4 | O5: =DailyBalance!P5-DailyBalance!P4 -> -3 | P5: =DailyBalance!Q5-DailyBalance!Q4 -> -1
A6: =IF(DailyBalance!A6>0,DailyBalance!A6,"") -> 2015-03-28 | B6: =DailyBalance!C6-DailyBalance!C5 -> 572 | D6: =DailyBalance!E6-DailyBalance!E5 -> 18 | E6: =DailyBalance!F6-DailyBalance!F5 -> 3 | F6: =DailyBalance!G6-DailyBalance!G5 -> -2 | G6: =DailyBalance!H6-DailyBalance!H5 -> 1 | H6: =DailyBalance!I6-DailyBalance!I5 -> 3 | I6: =DailyBalance!J6-DailyBalance!J5 -> 1 | J6: =DailyBalance!K6-DailyBalance!K5 -> -31 | K6: =DailyBalance!L6-DailyBalance!L5 -> -15 | L6: =DailyBalance!M6-DailyBalance!M5 -> 39 | M6: =DailyBalance!N6-DailyBalance!N5 -> 14 | N6: =DailyBalance!O6-DailyBalance!O5 -> 495 | O6: =DailyBalance!P6-DailyBalance!P5 -> 43 | P6: =DailyBalance!Q6-DailyBalance!Q5 -> 3
A7: =IF(DailyBalance!A7>0,DailyBalance!A7,"") -> 2015-03-29 | B7: =DailyBalance!C7-DailyBalance!C6 -> 17 | D7: =DailyBalance!E7-DailyBalance!E6 -> 34 | E7: =DailyBalance!F7-DailyBalance!F6 -> 5 | F7: =DailyBalance!G7-DailyBalance!G6 -> 0 | G7: =DailyBalance!H7-DailyBalance!H6 -> 3 | H7: =DailyBalance!I7-DailyBalance!I6 -> 3 | I7: =DailyBalance!J7-DailyBalance!J6 -> 10 | J7: =DailyBalance!K7-DailyBalance!K6 -> -108 | K7: =DailyBalance!L7-DailyBalance!L6 -> 19 | L7: =DailyBalance!M7-DailyBalance!M6 -> 36 | M7: =DailyBalance!N7-DailyBalance!N6 -> 8 | N7: =DailyBalance!O7-DailyBalance!O6 -> 3 | O7: =DailyBalance!P7-DailyBalance!P6 -> 4 | P7: =DailyBalance!Q7-DailyBalance!Q6 -> 0
A8: =IF(DailyBalance!A8>0,DailyBalance!A8,"") -> 2015-03-30 | B8: =DailyBalance!C8-DailyBalance!C7 -> -26 | D8: =DailyBalance!E8-DailyBalance!E7 -> 14 | E8: =DailyBalance!F8-DailyBalance!F7 -> 1 | F8: =DailyBalance!G8-DailyBalance!G7 -> -2 | G8: =DailyBalance!H8-DailyBalance!H7 -> 0 | H8: =DailyBalance!I8-DailyBalance!I7 -> 1 | I8: =DailyBalance!J8-DailyBalance!J7 -> 15 | J8: =DailyBalance!K8-DailyBalance!K7 -> -90 | K8: =DailyBalance!L8-DailyBalance!L7 -> -7 | L8: =DailyBalance!M8-DailyBalance!M7 -> 33 | M8: =DailyBalance!N8-DailyBalance!N7 -> 6 | N8: =DailyBalance!O8-DailyBalance!O7 -> 3 | O8: =DailyBalance!P8-DailyBalance!P7 -> 0 | P8: =DailyBalance!Q8-DailyBalance!Q7 -> 0
A9: =IF(DailyBalance!A9>0,DailyBalance!A9,"") -> 2015-03-31 | B9: =DailyBalance!C9-DailyBalance!C8 -> 276 | D9: =DailyBalance!E9-DailyBalance!E8 -> 44 | E9: =DailyBalance!F9-DailyBalance!F8 -> 4 | F9: =DailyBalance!G9-DailyBalance!G8 -> 3 | G9: =DailyBalance!H9-DailyBalance!H8 -> 4 | H9: =DailyBalance!I9-DailyBalance!I8 -> 1 | I9: =DailyBalance!J9-DailyBalance!J8 -> 12 | J9: =DailyBalance!K9-DailyBalance!K8 -> 149 | K9: =DailyBalance!L9-DailyBalance!L8 -> 25 | L9: =DailyBalance!M9-DailyBalance!M8 -> 20 | M9: =DailyBalance!N9-DailyBalance!N8 -> 13 | N9: =DailyBalance!O9-DailyBalance!O8 -> -2 | O9: =DailyBalance!P9-DailyBalance!P8 -> 2 | P9: =DailyBalance!Q9-DailyBalance!Q8 -> 1
A10: =IF(DailyBalance!A10>0,DailyBalance!A10,"") -> 2015-04-01 | B10: =DailyBalance!C10-DailyBalance!C9 -> 162 | D10: =DailyBalance!E10-DailyBalance!E9 -> 17 | E10: =DailyBalance!F10-DailyBalance!F9 -> 4 | F10: =DailyBalance!G10-DailyBalance!G9 -> -5 | G10: =DailyBalance!H10-DailyBalance!H9 -> 0 | H10: =DailyBalance!I10-DailyBalance!I9 -> -1 | I10: =DailyBalance!J10-DailyBalance!J9 -> 8 | J10: =DailyBalance!K10-DailyBalance!K9 -> 79 | K10: =DailyBalance!L10-DailyBalance!L9 -> 42 | L10: =DailyBalance!M10-DailyBalance!M9 -> 15 | M10: =DailyBalance!N10-DailyBalance!N9 -> 0 | N10: =DailyBalance!O10-DailyBalance!O9 -> -2 | O10: =DailyBalance!P10-DailyBalance!P9 -> 2 | P10: =DailyBalance!Q10-DailyBalance!Q9 -> 3
A11: =IF(DailyBalance!A11>0,DailyBalance!A11,"") -> 2015-04-02 | B11: =DailyBalance!C11-DailyBalance!C10 -> 148 | D11: =DailyBalance!E11-DailyBalance!E10 -> 10 | E11: =DailyBalance!F11-DailyBalance!F10 -> 4 | F11: =DailyBalance!G11-DailyBalance!G10 -> -4 | G11: =DailyBalance!H11-DailyBalance!H10 -> 0 | H11: =DailyBalance!I11-DailyBalance!I10 -> 0 | I11: =DailyBalance!J11-DailyBalance!J10 -> -4 | J11: =DailyBalance!K11-DailyBalance!K10 -> 112 | K11: =DailyBalance!L11-DailyBalance!L10 -> -17 | L11: =DailyBalance!M11-DailyBalance!M10 -> 38 | M11: =DailyBalance!N11-DailyBalance!N10 -> 9 | N11: =DailyBalance!O11-DailyBalance!O10 -> 3 | O11: =DailyBalance!P11-DailyBalance!P10 -> -3 | P11: =DailyBalance!Q11-DailyBalance!Q10 -> 0
A12: =IF(DailyBalance!A12>0,DailyBalance!A12,"") -> 2015-04-03 | B12: =DailyBalance!C12-DailyBalance!C11 -> 105 | D12: =DailyBalance!E12-DailyBalance!E11 -> 7 | E12: =DailyBalance!F12-DailyBalance!F11 -> -1 | F12: =DailyBalance!G12-DailyBalance!G11 -> -1 | G12: =DailyBalance!H12-DailyBalance!H11 -> -1 | H12: =DailyBalance!I12-DailyBalance!I11 -> -1 | I12: =DailyBalance!J12-DailyBalance!J11 -> -4 | J12: =DailyBalance!K12-DailyBalance!K11 -> 66 | K12: =DailyBalance!L12-DailyBalance!L11 -> 1 | L12: =DailyBalance!M12-DailyBalance!M11 -> 31 | M12: =DailyBalance!N12-DailyBalance!N11 -> 9 | N12: =DailyBalance!O12-DailyBalance!O11 -> 3 | O12: =DailyBalance!P12-DailyBalance!P11 -> -3 | P12: =DailyBalance!Q12-DailyBalance!Q11 -> -1
A13: =IF(DailyBalance!A13>0,DailyBalance!A13,"") -> 2015-04-04 | B13: =DailyBalance!C13-DailyBalance!C12 -> 209 | D13: =DailyBalance!E13-DailyBalance!E12 -> 33 | E13: =DailyBalance!F13-DailyBalance!F12 -> -1 | F13: =DailyBalance!G13-DailyBalance!G12 -> -2 | G13: =DailyBalance!H13-DailyBalance!H12 -> -2 | H13: =DailyBalance!I13-DailyBalance!I12 -> 0 | I13: =DailyBalance!J13-DailyBalance!J12 -> -8 | J13: =DailyBalance!K13-DailyBalance!K12 -> 134 | K13: =DailyBalance!L13-DailyBalance!L12 -> 20 | L13: =DailyBalance!M13-DailyBalance!M12 -> 16 | M13: =DailyBalance!N13-DailyBalance!N12 -> 14 | N13: =DailyBalance!O13-DailyBalance!O12 -> 4 | O13: =DailyBalance!P13-DailyBalance!P12 -> 1 | P13: =DailyBalance!Q13-DailyBalance!Q12 -> 0
A14: =IF(DailyBalance!A14>0,DailyBalance!A14,"") -> 2015-04-05 | B14: =DailyBalance!C14-DailyBalance!C13 -> 9 | D14: =DailyBalance!E14-DailyBalance!E13 -> -6 | E14: =DailyBalance!F14-DailyBalance!F13 -> 58 | F14: =DailyBalance!G14-DailyBalance!G13 -> -4 | G14: =DailyBalance!H14-DailyBalance!H13 -> -2 | H14: =DailyBalance!I14-DailyBalance!I13 -> -1 | I14: =DailyBalance!J14-DailyBalance!J13 -> 7 | J14: =DailyBalance!K14-DailyBalance!K13 -> -71 | K14: =DailyBalance!L14-DailyBalance!L13 -> 10 | L14: =DailyBalance!M14-DailyBalance!M13 -> 4 | M14: =DailyBalance!N14-DailyBalance!N13 -> 9 | N14: =DailyBalance!O14-DailyBalance!O13 -> 1 | O14: =DailyBalance!P14-DailyBalance!P13 -> 1 | P14: =DailyBalance!Q14-DailyBalance!Q13 -> 3
A15: =IF(DailyBalance!A15>0,DailyBalance!A15,"") -> 2015-04-06 | B15: =DailyBalance!C15-DailyBalance!C14 -> 58 | D15: =DailyBalance!E15-DailyBalance!E14 -> 12 | E15: =DailyBalance!F15-DailyBalance!F14 -> -1 | F15: =DailyBalance!G15-DailyBalance!G14 -> -2 | G15: =DailyBalance!H15-DailyBalance!H14 -> 2 | H15: =DailyBalance!I15-DailyBalance!I14 -> 1 | I15: =DailyBalance!J15-DailyBalance!J14 -> -11 | J15: =DailyBalance!K15-DailyBalance!K14 -> -6 | K15: =DailyBalance!L15-DailyBalance!L14 -> 35 | L15: =DailyBalance!M15-DailyBalance!M14 -> 19 | M15: =DailyBalance!N15-DailyBalance!N14 -> 1 | N15: =DailyBalance!O15-DailyBalance!O14 -> 3 | O15: =DailyBalance!P15-DailyBalance!P14 -> 3 | P15: =DailyBalance!Q15-DailyBalance!Q14 -> 2
A16: =IF(DailyBalance!A16>0,DailyBalance!A16,"") -> 2015-04-07 | B16: =DailyBalance!C16-DailyBalance!C15 -> 595 | D16: =DailyBalance!E16-DailyBalance!E15 -> -15 | E16: =DailyBalance!F16-DailyBalance!F15 -> 4 | F16: =DailyBalance!G16-DailyBalance!G15 -> -1 | G16: =DailyBalance!H16-DailyBalance!H15 -> -1 | H16: =DailyBalance!I16-DailyBalance!I15 -> 691 | I16: =DailyBalance!J16-DailyBalance!J15 -> 8 | J16: =DailyBalance!K16-DailyBalance!K15 -> -125 | K16: =DailyBalance!L16-DailyBalance!L15 -> -11 | L16: =DailyBalance!M16-DailyBalance!M15 -> 28 | M16: =DailyBalance!N16-DailyBalance!N15 -> 8 | N16: =DailyBalance!O16-DailyBalance!O15 -> 4 | O16: =DailyBalance!P16-DailyBalance!P15 -> 5 | P16: =DailyBalance!Q16-DailyBalance!Q15 -> 0
A17: =IF(DailyBalance!A17>0,DailyBalance!A17,"") -> 2015-04-08 | B17: =DailyBalance!C17-DailyBalance!C16 -> 13 | D17: =DailyBalance!E17-DailyBalance!E16 -> 33 | E17: =DailyBalance!F17-DailyBalance!F16 -> 3 | F17: =DailyBalance!G17-DailyBalance!G16 -> -1 | G17: =DailyBalance!H17-DailyBalance!H16 -> -1 | H17: =DailyBalance!I17-DailyBalance!I16 -> 1 | I17: =DailyBalance!J17-DailyBalance!J16 -> 14 | J17: =DailyBalance!K17-DailyBalance!K16 -> -101 | K17: =DailyBalance!L17-DailyBalance!L16 -> 26 | L17: =DailyBalance!M17-DailyBalance!M16 -> 20 | M17: =DailyBalance!N17-DailyBalance!N16 -> 13 | N17: =DailyBalance!O17-DailyBalance!O16 -> 5 | O17: =DailyBalance!P17-DailyBalance!P16 -> 0 | P17: =DailyBalance!Q17-DailyBalance!Q16 -> 1
A18: =IF(DailyBalance!A18>0,DailyBalance!A18,"") -> 2015-04-09 | B18: =DailyBalance!C18-DailyBalance!C17 -> 15 | D18: =DailyBalance!E18-DailyBalance!E17 -> -17 | E18: =DailyBalance!F18-DailyBalance!F17 -> 4 | F18: =DailyBalance!G18-DailyBalance!G17 -> -2 | G18: =DailyBalance!H18-DailyBalance!H17 -> 3 | H18: =DailyBalance!I18-DailyBalance!I17 -> 0 | I18: =DailyBalance!J18-DailyBalance!J17 -> -5 | J18: =DailyBalance!K18-DailyBalance!K17 -> 3 | K18: =DailyBalance!L18-DailyBalance!L17 -> 3 | L18: =DailyBalance!M18-DailyBalance!M17 -> 3 | M18: =DailyBalance!N18-DailyBalance!N17 -> 13 | N18: =DailyBalance!O18-DailyBalance!O17 -> 3 | O18: =DailyBalance!P18-DailyBalance!P17 -> 5 | P18: =DailyBalance!Q18-DailyBalance!Q17 -> 2
A19: =IF(DailyBalance!A19>0,DailyBalance!A19,"") -> 2015-04-10 | B19: =DailyBalance!C19-DailyBalance!C18 -> 103 | D19: =DailyBalance!E19-DailyBalance!E18 -> -12 | E19: =DailyBalance!F19-DailyBalance!F18 -> -2 | F19: =DailyBalance!G19-DailyBalance!G18 -> 4 | G19: =DailyBalance!H19-DailyBalance!H18 -> 4 | H19: =DailyBalance!I19-DailyBalance!I18 -> 2 | I19: =DailyBalance!J19-DailyBalance!J18 -> 9 | J19: =DailyBalance!K19-DailyBalance!K18 -> 53 | K19: =DailyBalance!L19-DailyBalance!L18 -> 32 | L19: =DailyBalance!M19-DailyBalance!M18 -> 9 | M19: =DailyBalance!N19-DailyBalance!N18 -> -1 | N19: =DailyBalance!O19-DailyBalance!O18 -> 0 | O19: =DailyBalance!P19-DailyBalance!P18 -> 3 | P19: =DailyBalance!Q19-DailyBalance!Q18 -> 2
A20: =IF(DailyBalance!A20>0,DailyBalance!A20,"") -> 2015-04-11 | B20: =DailyBalance!C20-DailyBalance!C19 -> -118 | D20: =DailyBalance!E20-DailyBalance!E19 -> -19 | E20: =DailyBalance!F20-DailyBalance!F19 -> 2 | F20: =DailyBalance!G20-DailyBalance!G19 -> 4 | G20: =DailyBalance!H20-DailyBalance!H19 -> -2 | H20: =DailyBalance!I20-DailyBalance!I19 -> 3 | I20: =DailyBalance!J20-DailyBalance!J19 -> -8 | J20: =DailyBalance!K20-DailyBalance!K19 -> -83 | K20: =DailyBalance!L20-DailyBalance!L19 -> -25 | L20: =DailyBalance!M20-DailyBalance!M19 -> 1 | M20: =DailyBalance!N20-DailyBalance!N19 -> 9 | N20: =DailyBalance!O20-DailyBalance!O19 -> 5 | O20: =DailyBalance!P20-DailyBalance!P19 -> -5 | P20: =DailyBalance!Q20-DailyBalance!Q19 -> 0
A21: =IF(DailyBalance!A21>0,DailyBalance!A21,"") -> 2015-04-12 | B21: =DailyBalance!C21-DailyBalance!C20 -> -39 | D21: =DailyBalance!E21-DailyBalance!E20 -> 16 | E21: =DailyBalance!F21-DailyBalance!F20 -> 3 | F21: =DailyBalance!G21-DailyBalance!G20 -> 5 | G21: =DailyBalance!H21-DailyBalance!H20 -> 4 | H21: =DailyBalance!I21-DailyBalance!I20 -> 3 | I21: =DailyBalance!J21-DailyBalance!J20 -> -12 | J21: =DailyBalance!K21-DailyBalance!K20 -> -124 | K21: =DailyBalance!L21-DailyBalance!L20 -> 20 | L21: =DailyBalance!M21-DailyBalance!M20 -> 33 | M21: =DailyBalance!N21-DailyBalance!N20 -> 7 | N21: =DailyBalance!O21-DailyBalance!O20 -> 3 | O21: =DailyBalance!P21-DailyBalance!P20 -> 0 | P21: =DailyBalance!Q21-DailyBalance!Q20 -> 3

Sheet InvestmentOptions
A1: Investment Name | B1: Asset Class | C1: Ticker
A2: Vanguard Prime Money Market Instl | B2: Money Market Funds | C2: VMRXX
A3: Vanguard Short-Term Investment-Grade I | B3: Bond Funds | C3: VFSIX
A4: PIMCO Total Return Instl | B4: Bond Funds | C4: PTTRX
A5: Vanguard Inflation-Protected Secs I | B5: Bond Funds | C5: VIPIX
A6: PIMCO High Yield Instl | B6: Bond Funds | C6: PHIYX
A7: Oppenheimer SteelPath MLP Alpha Y | B7: Speciality | C7: MLPOX
A8: Vanguard Institutional Index Instl Pl | B8: Large Cap Funds | C8: VIIIX
A9: Goldman Sachs Growth Opportunities Instl | B9: Mid Cap Funds | C9: GGOIX
A10: Guggenheim Mid Cap Value Inst | B10: Small Cap Funds | C10: SVUIX
A11: DFA US Small Cap Value I | B11: Small Cap Funds | C11: DFSVX
A12: TCM Small Cap Growth | B12: Small Cap Funds | C12: TCMSX
A13: Brandes International Equity I | B13: International Funds | C13: BIIEX
A14: William Blair Instl International Gr | B14: International Funds | C14: WBIIX
